Cogmind - Beta 13 @@@ ROGUE MODE // 2024.04.25 @ 23:33:35 Player: rel Result: Destroyed by Y-45 Defender with Heavy Assault Rifle Performance ------------- Evolutions (2) 1000 Regions Visited (5) 1000 Robots Destroyed (65) 325 Value Destroyed (2433) 2433 Prototype IDs (5) 100 Alien Tech Used (0) 0 Bonus (894) 894 TOTAL SCORE: 5752 Bonus ------- High Alert Combat Kills 194 Entered Garrisons 200 Used RIF Installer 500 Cogmind --------- Core Integrity 0/550 Matter 300/300 Energy 51/100 System Corruption 6% Temperature Cool (9) Movement Core (250) Ox4 Location -8/Garrison Parts ------- > --- POWER (1) -------- (None) > --- PROPULSION (4) --- Improved VTOL Module Improved VTOL Module > --- UTILITY (3) ------ Medium Storage Unit Relay Coupler [Grunt] (21) > --- WEAPON (3) ------- Pulse Rifle > --- INVENTORY (10) --- Faulty Improved VTOL Module Faulty Improved VTOL Module Authchip [R/Combat] Authchip [R/Combat] Authchip [R/Combat] Remote Datajack Peak State ------------ > --- POWER ------------ Light Nuclear Core > --- PROPULSION ------- Improved VTOL Module Improved VTOL Module Improved VTOL Module Improved VTOL Module > --- UTILITY ---------- Medium Storage Unit Bomb Drone Bay > --- WEAPON ----------- Missile Launcher Impact Mace > --- INVENTORY -------- Improved Ion Engine Improved VTOL Module Improved VTOL Module Authchip [R/Combat] Authchip [R/Combat] Authchip [R/Combat] Authchip [R/Combat] Relay Coupler [NC] Relay Coupler [Swarmer] Pulse Rifle [Rating: 45] Favorites ----------- Power Light Nuclear Core Engine Ion Engine Power Core Light Nuclear Core Propulsion Improved VTOL Module Wheel Wheel Flight Unit Improved VTOL Module Utility Medium Storage Unit Device Advanced Weight Redist. System Storage Medium Storage Unit Processor Core Analyzer Hackware Relay Coupler [Grunt] Protection Hardened Light Armor Plating Weapon Impact Mace Energy Gun Heavy EM Pulse Gun Ballistic Gun Assault Rifle Ballistic Cannon Improved Light Cannon Launcher Missile Launcher Special Weapon Remote Datajack Impact Weapon Impact Mace Build | -11 -10 -9 -9 -8 -8 ------- Run | Yrd Mat Mat Min Mat Gar Slots Evolved 4 | . . 2 . 2 . Power . | . . . . . . Propulsion 2 | . . 1 . 1 . Utility 1 | . . . . 1 . Weapon 1 | . . 1 . . . Parts Attached 89 | 1 10 15 9 38 16 Power 14 | . 2 . 3 5 4 Engine 10 | . 2 . 3 4 1 Core 4 | . . . . 1 3 Reactor . | . . . . . . Propulsion 15 | . 2 3 1 9 . Treads . | . . . . . . Leg . | . . . . . . Wheel 2 | . 2 . . . . Hover . | . . . . . . Flight 13 | . . 3 1 9 . Utility 30 | 1 1 3 . 15 10 Device 17 | . 1 1 . 10 5 Storage 7 | 1 . 1 . 3 2 Processor 2 | . . . . 2 . Hackware 3 | . . . . . 3 Protection 1 | . . 1 . . . Artifact . | . . . . . . Weapon 30 | . 5 9 5 9 2 Energy Gun 10 | . 2 4 . 3 1 Energy Cannon . | . . . . . . Ballistic Gun 1 | . 1 . . . . Ballistic Cannon 1 | . . 1 . . . Launcher 12 | . 1 4 3 4 . Special Weapon 1 | . . . . . 1 Impact Weapon 5 | . 1 . 2 2 . Slashing Weapon . | . . . . . . Piercing Weapon . | . . . . . . Special Melee Weapon . | . . . . . . Unidentified Prototypes 3 | . . . . 3 . Corrupted Parts 1 | . . . . . 1 System Corruption 6 | . . . . . 6 Parts Lost 17 | . . 1 4 3 9 Power 5 | . . . 1 1 3 Propulsion 4 | . . . 1 1 2 Utility 1 | . . . . . 1 Weapon 7 | . . 1 2 1 3 Highest Loss Streak 5 | . . 1 4 2 5 To Critical Strikes . | . . . . . . Average Slot Usage (%) 83 | . 89 88 75 82 85 Engine 4 | . 13 11 7 2 . Core 4 | . . . . 5 7 Wheel 4 | . 26 14 . . . Flight 28 | . . 11 32 35 35 Device 13 | . 7 11 11 16 8 Storage 9 | . 14 9 11 6 12 Energy Gun 1 | . . 12 . . . Launcher 7 | . 13 13 4 4 7 Impact Weapon 7 | . 6 . 8 9 9 Naked Turns . | . . . . . . Heaviest Build 33 | 5 16 33 26 30 32 Greatest Support 35 | 3 26 35 24 29 29 Greatest Overweight (x) 6 | 1 1 6 1 5 5 Average Overweight (x) . | . . . . . . Largest Inventory Capacity 10 | 8 8 10 10 10 10 Average Capacity 8 | 6 8 8 10 7 10 Most Carried 10 | 7 8 10 10 10 10 Average Carried 7 | 5 3 7 9 7 8 Final Capacity 10 | 8 8 10 10 10 10 Final Carried 10 | 7 8 10 10 6 6 Class Distribution -------------------- 59% | Mutant 32% | Sprinter 8% | Bomber Dominant Class ---------------- Mutant | -10/Materials Bomber | -9/Materials Mutant | -9/Mines Mutant | -8/Materials Sprinter | -8/Garrison Resources | -11 -10 -9 -9 -8 -8 ----------- Run | Yrd Mat Mat Min Mat Gar Matter Collected 1783 | 142 111 317 232 736 245 Remotely . | . . . . . . Salvage Created 1957 | . 160 412 125 920 340 Parts 76 | . 14 20 6 23 13 Haulers Intercepted 5 | . 1 1 . 3 . Recyclers Shooed 3 | . . . . 3 . Parts Field Recycled . | . . . . . . Retrieved Matter . | . . . . . . Parts Self-Destructed . | . . . . . . Prevented . | . . . . . . Kills | -11 -10 -9 -9 -8 -8 ------- Run | Yrd Mat Mat Min Mat Gar Combat Hostiles Destroyed 48 | . 4 12 6 16 10 Melee 11 | . . . 2 6 3 Guns 6 | . 1 5 . . . Cannons 1 | . . 1 . . . AOE 19 | . 3 6 2 5 3 Classes Destroyed 12 | . 3 4 2 1 2 Builder 4 | . 2 . . 2 . Tunneler 1 | . . . 1 . . Hauler 5 | . 1 1 . 3 . Recycler 5 | . . 1 . 4 . Operator 2 | . . 1 . 1 . Swarmer 13 | . . 3 4 6 . Grunt 23 | . 4 8 1 4 6 Brawler 2 | . . 1 . 1 . Duelist 1 | . . . 1 . . Sentry 6 | . . . . 5 1 Specialist 1 | . . . . . 1 Hunter 2 | . . . . . 2 Best Kill Streak 6 | . 6 6 4 6 5 Combat Bots Only 6 | . 4 6 4 6 5 Max Kills in Single Turn 4 | . 2 4 1 1 1 Gunslinging . | . . . . . . Exploded 3 | . 1 3 1 1 1 Melee 1 | . . . 1 1 1 Uniques/NPCs Destroyed . | . . . . . . Combat | -11 -10 -9 -9 -8 -8 -------- Run | Yrd Mat Mat Min Mat Gar Hostile Shots Fired 203 | . 7 19 25 56 96 Missed 61 | . 2 3 7 23 26 Damage Taken 2507 | . 225 245 483 531 1023 Core 794 | . 11 45 188 221 329 Absorbed by Shields . | . . . . . . Core Remaining (%) 78 | 100 95 . 41 . . Volleys Fired 63 | . 11 17 6 17 12 Largest 3 | . 2 3 1 1 1 Hottest 135 | . 50 135 36 36 63 Shots Fired 86 | . 15 36 6 17 12 Gun 33 | . 6 24 . . 3 Cannon 5 | . . 5 . . . Launcher 44 | . 9 7 6 17 5 Special 4 | . . . . . 4 Kinetic 11 | . 6 5 . . . Thermal 3 | . . . . . 3 Explosive 44 | . 9 7 6 17 5 Electromagnetic 24 | . . 24 . . . Robot Hit Streak 9 | . 4 5 2 9 8 Robot Miss Streak 3 | . 2 3 1 1 2 Penetration Max . | . . . . . . Secondary Targets . | . . . . . . Shots Hit Robots 117 | . 9 20 12 43 33 Core Hits 64 | . 14 17 4 21 8 Critical Kills 3 | . . . 1 2 . Critical Parts Destroyed 9 | . . . . 6 3 Critical Strikes 12 | . . . 1 8 3 Smash 12 | . . . 1 8 3 Melee Attacks 93 | . 5 . 12 40 36 Impact 93 | . 5 . 12 40 36 Slashing . | . . . . . . Piercing . | . . . . . . Sneak Attacks 12 | . . . 1 9 2 Combat Hostiles . | . . . . . . Follow-up Attacks . | . . . . . . Damage Inflicted 5867 | . 398 1104 597 2215 1553 Guns 338 | . 38 251 . . 49 Cannons 57 | . . 57 . . . Explosions 2154 | . 360 796 253 459 286 Melee 3318 | . . . 344 1756 1218 Ramming . | . . . . . . Kinetic 95 | . 38 57 . . . Thermal 502 | . . 453 . . 49 Explosive 1701 | . 360 343 253 459 286 Electromagnetic 251 | . . 251 . . . Impact 3318 | . . . 344 1756 1218 Slashing . | . . . . . . Piercing . | . . . . . . Highest Corruption 6 | . . . . . 6 Average Corruption 6 | . . . . . 6 Corruption Purged . | . . . . . . Corruption Blocked . | . . . . . . Effects 2 | . . . . . 2 Message Errors 1 | . . . . . 1 Heat Flow Errors 1 | . . . . . 1 Overload Shots . | . . . . . . Overflow Damage 1394 | . 2 89 142 781 380 Projectiles . | . . . . . . Explosions 174 | . 2 89 68 15 . Melee 1220 | . . . 74 766 380 Knockbacks 10 | . . . . 7 3 Impact 10 | . . . . 7 3 Kinetic . | . . . . . . Secondary . | . . . . . . Self-Inflicted Damage 526 | . 164 91 213 58 . Shots 14 | . 5 3 4 2 . Rammed . | . . . . . . Targets Rammed . | . . . . . . Kicked . | . . . . . . Crushed . | . . . . . . Highest Temperature 283 | . 8 153 . 283 87 Average Temperature 57 | . 4 67 . 67 15 Received Heat Transfer 735 | . 36 45 6 180 468 Siege Activations . | . . . . . . Robots Corrupted . | . . . . . . Combat Hostiles . | . . . . . . Parts Fried 19 | . . . 1 18 . Impact Corruptions 38 | . . . 5 25 8 Robots Melted . | . . . . . . Combat Hostiles . | . . . . . . Parts Melted . | . . . . . . Heat Transferred 511 | . . 400 . . 111 Parts Sabotaged . | . . . . . . Parts Stolen . | . . . . . . Parts Stripped . | . . . . . . Power Chain Reactions 2 | . . 2 . . . Alert | -11 -10 -9 -9 -8 -8 ------- Run | Yrd Mat Mat Min Mat Gar Peak Influence 720 | . 286 658 412 720 554 Initial 321 | . . 120 256 160 321 Average 416 | . 177 370 379 513 339 Maximum Alert Level 3 | . 1 2 2 3 2 Low Security (%) 10 | 100 61 14 . 3 . Level 1 30 | . 38 28 38 16 70 Level 2 57 | . . 57 61 77 29 Level 3 1 | . . . . 2 . Level 4 . | . . . . . . Level 5 . | . . . . . . High Security . | . . . . . . Max Security . | . . . . . . Squads Dispatched 3 | . 1 1 . 1 . Investigation 1 | . 1 . . . . Extermination . | . . . . . . Reinforcement 2 | . . 1 . 1 . Assault . | . . . . . . Garrison . | . . . . . . Intercept . | . . . . . . Searches Triggered . | . . . . . . Construction Impeded . | . . . . . . Haulers Reinforced . | . . . . . . Active Scanning Responses . | . . . . . . Cargo Convoy Interrupts . | . . . . . . Stealth | -11 -10 -9 -9 -8 -8 --------- Run | Yrd Mat Mat Min Mat Gar Distress Signals 3 | . . 2 . 1 . Communications Jammed . | . . . . . . Distress Signals . | . . . . . . Times Spotted 68 | . 9 16 8 27 8 Peak Tracking Total 9 | . 4 9 4 5 7 Tactical Retreats 7 | . 1 1 . 5 . Traps | -11 -10 -9 -9 -8 -8 ------- Run | Yrd Mat Mat Min Mat Gar Traps Triggered . | . . . . . . Indirectly . | . . . . . . Trap Hack Attempts . | . . . . . . Triggered . | . . . . . . Disarmed . | . . . . . . Reprogrammed . | . . . . . . Reused . | . . . . . . Traps Extracted . | . . . . . . Installed . | . . . . . . Triggered . | . . . . . . Machines | -11 -10 -9 -9 -8 -8 ---------- Run | Yrd Mat Mat Min Mat Gar Machines Disabled 14 | . 5 4 . 2 3 Max in Single Turn 4 | . 2 4 . 2 1 Garrison Relay 3 | . . . . . 3 Machines Repaired . | . . . . . . Machines Dismantled . | . . . . . . Machines Sabotaged . | . . . . . . Overloaded Fab Kills . | . . . . . . Hacking | -11 -10 -9 -9 -8 -8 --------- Run | Yrd Mat Mat Min Mat Gar Machines Accessed 15 | . 4 1 1 7 2 Terminals 12 | . 3 1 . 6 2 Fabricators . | . . . . . . Repair Stations . | . . . . . . Recycling Units 1 | . 1 . . . . Scanalyzers . | . . . . . . Garrison Access 1 | . . . . 1 . Total Hacks 39 | . 12 5 1 18 3 Successful 19 | . 5 2 1 9 2 Failed 20 | . 7 3 . 9 1 Catastrophic 3 | . . 1 . 1 1 Database Lockouts . | . . . . . . Manual . | . . . . . . Terminals 34 | . 9 5 . 17 3 Fabricators . | . . . . . . Repair Stations . | . . . . . . Recycling Units 3 | . 3 . . . . Scanalyzers . | . . . . . . Garrison Access 1 | . . . . 1 . Terminal Hacks 18 | . 5 2 1 8 2 Record 1 | . . . . 1 . Robot Analysis 1 | . . . . 1 . Prototype ID Bank 1 | . . 1 . . . Open Door 1 | . . . 1 . . Branch Access Points 1 | . . . . 1 . Emergency Access Points 2 | . . . . 1 1 Terminal Index 1 | . 1 . . . . Alert Level 1 | . 1 . . . . Locate Traps 1 | . . . . 1 . Maintenance Status 2 | . 1 . . 1 . Patrol Status 1 | . 1 . . . . Reinforcement Status 1 | . . 1 . . . Registered Components 1 | . . . . 1 . Zone Layout 2 | . 1 . . 1 . Garrison Registry 1 | . . . . . 1 Fabricator Hacks . | . . . . . . Repair Station Hacks . | . . . . . . Recycling Unit Hacks . | . . . . . . Scanalyzer . | . . . . . . Garrison Access Hacks 1 | . . . . 1 . Unlock Access 1 | . . . . 1 . Unauthorized Hacks . | . . . . . . Terminals . | . . . . . . Fabricators . | . . . . . . Repair Stations . | . . . . . . Recycling Units . | . . . . . . Scanalyzers . | . . . . . . Garrison Access . | . . . . . . Data Cores Recovered 1 | . . . . 1 . Used 1 | . . . . 1 . Hacking Detections 12 | . 4 1 . 5 2 Full Trace Events 6 | . 2 1 . 2 1 Feedback Events . | . . . . . . Feedback Blocked . | . . . . . . Robot Schematics Acquired . | . . . . . . Robots Built . | . . . . . . Authchips . | . . . . . . Time . | . . . . . . Total Robot Build Rating . | . . . . . . Part Schematics Acquired . | . . . . . . Parts Built . | . . . . . . Authchips . | . . . . . . Time . | . . . . . . Total Part Build Rating . | . . . . . . Parts Repaired . | . . . . . . Time . | . . . . . . Parts Recycled . | . . . . . . Recycled Matter . | . . . . . . Retrieved Matter . | . . . . . . Retrieved Components . | . . . . . . Parts Scanalyzed . | . . . . . . Part Schematics Acquired . | . . . . . . Parts Damaged . | . . . . . . Bothacking | -11 -10 -9 -9 -8 -8 ------------ Run | Yrd Mat Mat Min Mat Gar Used RIF Installer 1 | . . . . . 1 Robots Hacked 1 | . . . . . 1 Non-combat . | . . . . . . Combat 1 | . . . . . 1 Robot Hacks Applied 1 | . . . . . 1 parse_system 1 | . . . . . 1 Relay Couplers Released 9 | . . . . . 9 Machine Destruction 9 | . . . . . 9 Attached 2 | . . . . . 2 Fabnet Peak Effective % . | . . . . . . Robots Rewired . | . . . . . . Allies Hacked . | . . . . . . Hacks Repelled . | . . . . . . Allies | -11 -10 -9 -9 -8 -8 -------- Run | Yrd Mat Mat Min Mat Gar Total Allies . | . . . . . . Largest Group . | . . . . . . Highest-Rated Group . | . . . . . . Highest-Rated Ally . | . . . . . . Total Orders 8 | . . . . . 8 ROAM 7 | . . . . . 7 FOLLOW 1 | . . . . . 1 Ally Attacks 16 | . . . . . 16 Total Damage . | . . . . . . Kills . | . . . . . . Allies Corrupted . | . . . . . . Allies Melted . | . . . . . . Intel | -11 -10 -9 -9 -8 -8 ------- Run | Yrd Mat Mat Min Mat Gar Robot Analysis Total 1 | . . . . 1 . Derelict Logs Recovered 1 | . . . 1 . . Drone Launches 16 | . . . . . 16 Drone Recoveries . | . . . . . . Exploration | -11 -10 -9 -9 -8 -8 ------------- Run | Yrd Mat Mat Min Mat Gar Turns Passed 3376 | 33 353 388 339 1754 509 Spaces Moved 2785 | 31 297 461 461 866 669 Core 64 | 31 14 7 6 4 2 Treads . | . . . . . . Legs . | . . . . . . Wheels 512 | . 283 229 . . . Hover . | . . . . . . Flight 2209 | . . 225 455 862 667 Fastest Speed 26 | 50 90 29 29 26 26 Average Speed 52 | 79 90 63 51 53 27 Slowest Speed 350 | 100 100 350 102 300 300 Overloaded Moves . | . . . . . . Propulsion Burnouts . | . . . . . . Robots Hopped 11 | . . 2 2 3 4 Cave-ins Triggered . | . . . . . . Exploration Rate (%) 48 | 3 59 33 80 47 70 Regions Visited 5 Branch Regions 1 Pre-discovered Areas . | . . . . . . Known Exits Taken 1 | . . . . 1 . Unknown Exits Taken 4 | 1 1 1 1 . . Scrap Searched 1 | . . . 1 . . Spaces Dug 1 | . . . . . 1 Terrain Destroyed 346 | . 56 91 64 86 49 Melee 1 | . . . . . 1 Projectile . | . . . . . . AOE 345 | . 56 91 64 86 48 Terrain Rammed . | . . . . . . Walls Destroyed . | . . . . . . Machines Disabled . | . . . . . . Actions | -11 -10 -9 -9 -8 -8 --------- Run | Yrd Mat Mat Min Mat Gar Total 4448 | 38 357 517 532 2081 923 Wait 1288 | . 18 10 34 1058 168 Move 2762 | 30 296 456 457 860 663 Hop 8 | . . 2 1 3 2 Pick Up 73 | 7 12 9 6 27 12 Fast Attach 24 | 1 . 6 2 10 5 Attach 39 | . 6 4 4 14 11 Detach 9 | . . . 1 6 2 Swap 28 | . 4 5 3 14 2 Drop 61 | . 5 8 6 32 10 Fire 63 | . 11 17 6 17 12 Melee 93 | . 5 . 12 40 36 Ram . | . . . . . . Kick . | . . . . . . Crush . | . . . . . . Escape Stasis . | . . . . . . Rewire . | . . . . . . Trap . | . . . . . . Miscellaneous . | . . . . . . Route ------- -11/Scrapyard -10/Materials (discovered 2 exits: *Mat / [*Min]) -9/Materials (discovered 2 exits: *Mat / *Min) -9/Mines (discovered 2 exits: *Mat x2) -8/Materials -8/Garrison (discovered 4 exits: [*Mat x4]) History --------- Turn | Location | Event 12 | -11/Scrapyard | Discovered new exit (range 16) 34 | -11/Scrapyard | Entered Materials 90 | -10/Materials | Discovered new exit (range 8) 302 | -10/Materials | Build established: Mutant 342 | -10/Materials | Discovered new exit (range 10) 387 | -10/Materials | Entered another Materials area 387 | -9/Materials | Evolved 2 slots: Propulsion x1, Weapon x1 703 | -9/Materials | Discovered new exit (range 16) 771 | -9/Materials | Discovered new exit (range 11) 775 | -9/Materials | Entered Mines 780 | -9/Mines | Met a Derelict bent on vengeance 822 | -9/Mines | Lost 4 parts (1p1n2w) 823 | -9/Mines | Discovered new exit (range 10) 895 | -9/Mines | Core integrity fell below 50% 940 | -9/Mines | Joined a pair of Derelicts in attacking an 0b10 outpost 1036 | -9/Mines | Found the Drone Emporium 1038 | -9/Mines | Found Prototype Device 1068 | -9/Mines | A weapon hastily lodged in a ceiling crevice suddenly fell to the ground 1108 | -9/Mines | Discovered new exit (range 4) 1114 | -9/Mines | Entered Materials 1114 | -8/Materials | Evolved 2 slots: Propulsion x1, Utility x1 1133 | -8/Materials | Identified Bomb Drone Bay 2868 | -8/Materials | Identified exit to Garrison 2868 | -8/Materials | Entered Garrison 2906 | -8/Garrison | Triggered checkpoint 2910 | -8/Garrison | Triggered checkpoint 2910 | -8/Garrison | Triggered checkpoint 2924 | -8/Garrison | Garrison Relay disabled 2942 | -8/Garrison | Discovered new exit (range 5) 2986 | -8/Garrison | Triggered checkpoint 2986 | -8/Garrison | Discovered new exit (range 60) 2987 | -8/Garrison | Triggered checkpoint 2994 | -8/Garrison | Triggered checkpoint 3024 | -8/Garrison | Discovered new exit (range 65) 3032 | -8/Garrison | Triggered checkpoint 3039 | -8/Garrison | Discovered new exit (range 73) 3165 | -8/Garrison | Installed Relay Interface Framework 3196 | -8/Garrison | Discovered new exit (range 55) 3196 | -8/Garrison | Discovered new exit (range 42) 3196 | -8/Garrison | Discovered new exit (range 26) 3196 | -8/Garrison | Discovered new exit (range 32) 3227 | -8/Garrison | Garrison Relay disabled 3256 | -8/Garrison | Garrison Relay disabled 3270 | -8/Garrison | Triggered checkpoint 3291 | -8/Garrison | Core integrity fell below 50% 3340 | -8/Garrison | Lost 4 parts (2p2w) 3352 | -8/Garrison | Core integrity fell below 20% 3377 | -8/Garrison | Destroyed by Y-45 Defender with Heavy Assault Rifle Last Messages --------------- effect. 03313_ G-47 Trooper knocked back. 03325_ Critical hit (Burn: +37). 03325_ Integrated Corrupted Lgt. Nuclear Core (+6). 03326_ Acquired 10 matter. 03327_ /ADIQ M A19=MC>|K=8GDL3T,ZV>QN8GCUT 03331_ Destroyed Aluminum Leg. 03331_ G-47 Trooper system corrupted by crushing effect. 03332_ G-47 Trooper system terminally corrupted. 03348_ Critical hit (Burn: +37). 03351_ Adv. Weight Redist. System destroyed. 03357_ Imp. VTOL Module destroyed. 03357_ Lgt. Nuclear Core destroyed. 03358_ Y-45 Defender destroyed. 03359_ System corrupted: Heat flow error (+115). 03368_ Imp. VTOL Module destroyed. 03371_ Impact Mace destroyed. 03373_ Acquired 10 matter. Map ----- +----------------------------------------------------+ | # #?????????#" "#??# #?????????? | | # #?????????# ! #??# #?????????? | | # #?????????#" !"#??# #?????????? | | + #?????????#"" "#??# ###???????? | | # #?????????### ##??# # #####???? | | # #???????###### #???# # # #???? | | # #????#### # ##### # # #???? | | # ###### # < #"## # # # #???? | | #???? | | % #???? | | ########## ###### # #???? | | ?????????# # ##????# #???? | | ?????????#### #?????### ##???? | | ????????????# ####### [ ##########? | | ????????????# +" * #? | | ????????????#########%! ######## #? | | ????????????????????### #??????# #? | | ??????????????????????# #??????# #? | | ??????????????????????# #??????# #? | | ??????????????????????# ######## #? | | ??????????????????????# ##"""" " #? | | ??????????????????????# ### !## #? | | ??????????????????????# ! +#? | | ??????????????????????#%% ##? | | ?????????????????????###Y### ###?? | | ?????????????????????#hh=@## #???? | | ?????????????????????#hh%[###+##???? | | ?????????????????????###+#### #????? | | ???????????????????????#=* #????? | | ???????????????????????########????? | | ???????????????????????????????????? | | ???????????????????????????????????? | | ???????????????????????????????????? | | | | | | | | | | | | | | | | | | | | | | | | | | | | | | | | | | | +----------------------------------------------------+ Best States ------------- Heat Dissipation 31 Energy Generation 16 Energy Capacity 290 Matter Stores 450 Matter Capacity 450 Sight Range 16 Robot Scan Range 14 Terrain Scan Density 10 Additional Mass Support 9 Evasion (%) 64 Core Analysis 6 Matter Filtering 30 Relay Coupler Types 1 Relay Coupler Value 21 Authchip Count 4 Item Schematics ----------------- None Robot Schematics ------------------ None Fabricated ------------ Nothing Alien Tech Used ----------------- None Achievements -------------- Dynamic Key Release The Drones! Challenges ------------ None Game ------ Seed HeavyCompositeChronowheel Manual? 0 Play Time 00:52:10 Cumulative 11.0 hours Start 2024.04.25 @ 22:40:48 End 2024.04.25 @ 23:33:35 Sessions 1 Manual Loads 0 Difficulty Rogue Special Mode None Game No. 13 Rogue 13 Adventurer 0 Explorer 0 Win Type - Total 0 Types 0/0/0/0/0/0/0/0/0 Lore% 16 Gallery% 20 Achievement% 16 Wizard Run 0 Options --------- Layout 1 ASCII 0 Keyboard 0 Movement Mouse Keybinds 0 Fullscreen 1 Font 32/SmallcapsGlow Map View 50x35 Zoom Use 0% Tactical HUD 1 Map Filters NONE Filters NONE Steam 1 RUN: d0b7202a-c509-4fda-b051-28b033fafac4